Cogmind - Beta 11.1 @@@ ROGUE MODE // 2022.05.03 @ 21:07:38 // Winter2019/RPGLIKE Player: Kiks Result: Core destroyed Performance ------------- Evolutions (0) 0 Regions Visited (3) 600 Robots Destroyed (18) 90 Value Destroyed (419) 419 Prototype IDs (1) 20 Alien Tech Used (0) 0 Bonus (-45) -45 TOTAL SCORE: 1084 Bonus ------- Friendly Fire -45 Cogmind --------- Core Integrity 0/600 Matter 296/300 Energy 250/250 System Corruption 0% Temperature Cool (0) Movement Walking (120) Location -10/Exiles Parts ------- > --- POWER (1) -------- Ion Engine > --- PROPULSION (2) --- Aluminum Leg Aluminum Leg > --- UTILITY (2) ------ Bomb Drone Bay (1/16) > --- WEAPON (2) ------- Assault Rifle Light Assault Rifle > --- INVENTORY (3) ---- Improved Heat Sink Hacking Suite Peak State ------------ > --- POWER ------------ Ion Engine > --- PROPULSION ------- Aluminum Leg Aluminum Leg > --- UTILITY ---------- Bomb Drone Bay > --- WEAPON ----------- Assault Rifle Light Assault Rifle > --- INVENTORY -------- Improved Heat Sink Hacking Suite [Rating: 19] Favorites ----------- Power Ion Engine Engine Ion Engine Propulsion Aluminum Leg Treads Light Treads Leg Aluminum Leg Utility Targeting Computer Device Tractor Beam Processor Targeting Computer Weapon Assault Rifle Ballistic Gun Assault Rifle Build | -11 -10 -10 -10 ------- Run | Scr Mat Min Exi Slots Evolved 3 | 3 . . . Power . | . . . . Propulsion 1 | 1 . . . Utility 1 | 1 . . . Weapon 1 | 1 . . . Parts Attached 13 | 5 7 1 . Power 1 | 1 . . . Engine 1 | 1 . . . Core . | . . . . Reactor . | . . . . Propulsion 6 | 2 4 . . Treads 2 | . 2 . . Leg 4 | 2 2 . . Wheel . | . . . . Hover . | . . . . Flight . | . . . . Utility 4 | . 3 1 . Device 3 | . 2 1 . Storage . | . . . . Processor 1 | . 1 . . Hackware . | . . . . Protection . | . . . . Artifact . | . . . . Weapon 2 | 2 . . . Energy Gun . | . . . . Energy Cannon . | . . . . Ballistic Gun 2 | 2 . . . Ballistic Cannon . | . . . . Launcher . | . . . . Special Weapon . | . . . . Impact Weapon . | . . . . Slashing Weapon . | . . . . Piercing Weapon . | . . . . Special Melee Weapon . | . . . . Unidentified Prototypes 1 | . . 1 . Parts Lost 1 | . . 1 . Power . | . . . . Propulsion . | . . . . Utility 1 | . . 1 . Weapon . | . . . . Highest Loss Streak 1 | . . 1 . To Critical Strikes . | . . . . Average Slot Usage (%) 93 | . 98 85 85 Engine 14 | . 14 14 14 Leg 27 | . 27 28 28 Device 9 | . 13 1 14 Processor 12 | . 13 12 . Ballistic Gun 28 | . 28 28 28 Naked Turns . | . . . . Heaviest Build 16 | 8 9 16 16 Greatest Support 20 | 20 20 20 20 Greatest Overweight (x) . | . . . . Average Overweight (x) . | . . . . Largest Inventory Capacity 3 | 3 3 3 3 Average Capacity 2 | 2 3 3 3 Most Carried 3 | . 3 3 2 Average Carried 1 | . 1 2 2 Final Capacity 3 | 3 3 3 3 Final Carried 2 | . 2 2 2 Class Distribution -------------------- 100% | Mutant Dominant Class ---------------- Mutant | -10/Materials Mutant | -10/Mines Mutant | -10/Exiles Resources | -11 -10 -10 -10 ----------- Run | Scr Mat Min Exi Matter Collected 578 | 245 295 38 . Remotely 262 | . 262 . . Salvage Created 549 | . 521 28 . Parts 36 | . 34 2 . Haulers Intercepted 1 | . 1 . . Recyclers Shooed 3 | . 1 2 . Parts Field Recycled . | . . . . Retrieved Matter . | . . . . Parts Self-Destructed . | . . . . Prevented . | . . . . Kills | -11 -10 -10 -10 ------- Run | Scr Mat Min Exi Combat Hostiles Destroyed 10 | . 9 1 . Guns 10 | . 9 1 . Classes Destroyed 8 | . 7 1 . Worker 1 | . 1 . . Builder 1 | . . 1 . Hauler 1 | . 1 . . Recycler 1 | . 1 . . Operator 1 | . 1 . . Watcher 3 | . 3 . . Swarmer 2 | . 2 . . Grunt 8 | . 7 1 . Best Kill Streak 4 | . 4 1 . Combat Bots Only 4 | . 4 1 . Max Kills in Single Turn 1 | . 1 1 . Gunslinging . | . . . . Exploded . | . . . . Melee . | . . . . Uniques/NPCs Destroyed . | . . . . Combat | -11 -10 -10 -10 -------- Run | Scr Mat Min Exi Damage Taken 1349 | . 775 195 379 Core 1083 | . 620 153 310 Absorbed by Shields . | . . . . Redirected to Core 908 | . 501 153 254 Core Remaining (%) 100 | 100 . . . Volleys Fired 64 | . 55 8 1 Largest 2 | . 2 2 2 Hottest 40 | . 40 40 40 Shots Fired 128 | . 110 16 2 Gun 128 | . 110 16 2 Cannon . | . . . . Launcher . | . . . . Special . | . . . . Kinetic 128 | . 110 16 2 Thermal . | . . . . Explosive . | . . . . Electromagnetic . | . . . . Robot Hit Streak 9 | . 9 6 2 Robot Miss Streak 5 | . 5 1 1 Penetration Max . | . . . . Secondary Targets 3 | . 3 . . Max Gunslinging Chain 1 | . 1 . . Shots Hit Robots 81 | . 71 9 1 Core Hits 34 | . 29 5 . Critical Kills . | . . . . Critical Parts Destroyed 1 | . 1 . . Critical Strikes 1 | . 1 . . Destroy 1 | . 1 . . Melee Attacks . | . . . . Impact . | . . . . Slashing . | . . . . Piercing . | . . . . Sneak Attacks . | . . . . Combat Hostiles . | . . . . Follow-up Attacks . | . . . . Damage Inflicted 887 | . 773 99 15 Guns 887 | . 773 99 15 Cannons . | . . . . Explosions . | . . . . Melee . | . . . . Ramming . | . . . . Kinetic 887 | . 773 99 15 Thermal . | . . . . Explosive . | . . . . Electromagnetic . | . . . . Impact . | . . . . Slashing . | . . . . Piercing . | . . . . Highest Corruption . | . . . . Average Corruption . | . . . . Corruption Purged . | . . . . Corruption Blocked . | . . . . Overload Shots . | . . . . Overflow Damage . | . . . . Projectiles . | . . . . Explosions . | . . . . Melee . | . . . . Knockbacks . | . . . . Impact . | . . . . Kinetic . | . . . . Secondary . | . . . . Self-Inflicted Damage . | . . . . Shots . | . . . . Rammed . | . . . . Targets Rammed . | . . . . Kicked . | . . . . Crushed . | . . . . Highest Temperature 49 | . 49 45 . Average Temperature 19 | . 18 26 . Received Heat Transfer 426 | . 363 63 . Siege Activations . | . . . . Robots Corrupted . | . . . . Combat Hostiles . | . . . . Parts Fried . | . . . . Impact Corruptions . | . . . . Robots Melted . | . . . . Combat Hostiles . | . . . . Parts Melted . | . . . . Heat Transferred . | . . . . Parts Sabotaged . | . . . . Parts Stolen . | . . . . Parts Stripped . | . . . . Power Chain Reactions . | . . . . Missiles Intercepted . | . . . . Alert | -11 -10 -10 -10 ------- Run | Scr Mat Min Exi Peak Influence 305 | . 305 41 . Initial 1 | . . 1 . Average 66 | . 90 38 . Maximum Alert Level 1 | . 1 . . Low Security (%) 92 | 100 87 100 . Level 1 7 | . 12 . . Level 2 . | . . . . Level 3 . | . . . . Level 4 . | . . . . Level 5 . | . . . . High Security . | . . . . Max Security . | . . . . Squads Dispatched 2 | . 2 . . Investigation . | . . . . Extermination . | . . . . Reinforcement 2 | . 2 . . Assault . | . . . . Garrison . | . . . . Intercept . | . . . . Searches Triggered . | . . . . Construction Impeded . | . . . . Haulers Reinforced . | . . . . Active Scanning Responses . | . . . . Cargo Convoy Interrupts . | . . . . Stealth | -11 -10 -10 -10 --------- Run | Scr Mat Min Exi Distress Signals 1 | . . 1 . Communications Jammed . | . . . . Distress Signals . | . . . . Times Spotted 25 | . 19 2 4 Peak Tracking Total 9 | . 6 1 9 Tactical Retreats 1 | . 1 . . Traps | -11 -10 -10 -10 ------- Run | Scr Mat Min Exi Traps Triggered 1 | . 1 . . Indirectly . | . . . . Trap Hack Attempts . | . . . . Triggered . | . . . . Disarmed . | . . . . Reprogrammed . | . . . . Reused . | . . . . Traps Extracted . | . . . . Installed . | . . . . Triggered . | . . . . Machines | -11 -10 -10 -10 ---------- Run | Scr Mat Min Exi Machines Disabled 1 | . 1 . . Max in Single Turn 1 | . 1 . . Machines Sabotaged . | . . . . Garrisons Compromised . | . . . . Overloaded Fab Kills . | . . . . Hacking | -11 -10 -10 -10 --------- Run | Scr Mat Min Exi Machines Accessed 3 | . 2 1 . Terminals 2 | . 2 . . Fabricators . | . . . . Repair Stations . | . . . . Recycling Units . | . . . . Scanalyzers . | . . . . Garrison Access . | . . . . Total Hacks 7 | . 6 1 . Successful 5 | . 4 1 . Failed 2 | . 2 . . Catastrophic 1 | . 1 . . Database Lockouts . | . . . . Manual 4 | . 4 . . Terminals 6 | . 6 . . Fabricators . | . . . . Repair Stations . | . . . . Recycling Units . | . . . . Scanalyzers . | . . . . Garrison Access . | . . . . Terminal Hacks 3 | . 2 1 . Open Door 1 | . . 1 . Unreport Threat 2 | . 2 . . Fabricator Hacks . | . . . . Repair Station Hacks . | . . . . Recycling Unit Hacks . | . . . . Scanalyzer . | . . . . Garrison Access Hacks . | . . . . Unauthorized Hacks 2 | . 2 . . Terminals 2 | . 2 . . Botnet 2 | . 2 . . Fabricators . | . . . . Repair Stations . | . . . . Recycling Units . | . . . . Scanalyzers . | . . . . Garrison Access . | . . . . Data Cores Recovered . | . . . . Used . | . . . . Hacking Detections 2 | . 2 . . Full Trace Events . | . . . . Feedback Events . | . . . . Feedback Blocked . | . . . . Robot Schematics Acquired . | . . . . Robots Built . | . . . . Authchips . | . . . . Time . | . . . . Total Robot Build Rating . | . . . . Part Schematics Acquired . | . . . . Parts Built . | . . . . Authchips . | . . . . Time . | . . . . Total Part Build Rating . | . . . . Parts Repaired . | . . . . Time . | . . . . Parts Recycled . | . . . . Recycled Matter . | . . . . Retrieved Matter . | . . . . Retrieved Components . | . . . . Parts Scanalyzed . | . . . . Part Schematics Acquired . | . . . . Parts Damaged . | . . . . Bothacking | -11 -10 -10 -10 ------------ Run | Scr Mat Min Exi Used RIF Installer . | . . . . Robots Hacked . | . . . . Non-combat . | . . . . Combat . | . . . . Robot Hacks Applied . | . . . . Relay Couplers Released . | . . . . Fabnet Peak Effective % . | . . . . Robots Rewired . | . . . . Allies Hacked . | . . . . Hacks Repelled . | . . . . Allies | -11 -10 -10 -10 -------- Run | Scr Mat Min Exi Total Allies . | . . . . Largest Group . | . . . . Highest-Rated Group . | . . . . Highest-Rated Ally . | . . . . Total Orders . | . . . . Ally Attacks 8 | . . . 8 Total Damage . | . . . . Kills . | . . . . Allies Corrupted . | . . . . Allies Melted . | . . . . Intel | -11 -10 -10 -10 ------- Run | Scr Mat Min Exi Robot Analysis Total . | . . . . Derelict Logs Recovered 2 | . . 2 . Drone Launches 16 | . . . 16 Drone Recoveries 1 | . . . 1 Exploration | -11 -10 -10 -10 ------------- Run | Scr Mat Min Exi Turns Passed 1207 | 71 662 409 65 Spaces Moved 802 | 57 399 313 33 Core 6 | 6 . . . Treads . | . . . . Legs 796 | 51 399 313 33 Wheels . | . . . . Hover . | . . . . Flight . | . . . . Fastest Speed 50 | 50 120 120 120 Average Speed 119 | 112 120 120 120 Slowest Speed 120 | 120 120 120 120 Overloaded Moves . | . . . . Propulsion Burnouts . | . . . . Robots Hopped . | . . . . Cave-ins Triggered . | . . . . Exploration Rate (%) 39 | 5 73 68 12 Regions Visited 3 Branch Regions 2 Pre-discovered Areas 1 | . . 1 . Known Exits Taken . | . . . . Unknown Exits Taken 3 | 1 1 1 . Scrap Searched 1 | . . 1 . Spaces Dug . | . . . . Terrain Destroyed . | . . . . Melee . | . . . . Projectile . | . . . . AOE . | . . . . Terrain Rammed . | . . . . Walls Destroyed . | . . . . Machines Disabled . | . . . . Actions | -11 -10 -10 -10 --------- Run | Scr Mat Min Exi Total 930 | 61 481 332 56 Wait 22 | . . . 22 Move 799 | 56 398 312 33 Hop . | . . . . Pick Up 5 | . 4 1 . Fast Attach 9 | 5 3 1 . Attach . | . . . . Detach . | . . . . Swap 4 | . 4 . . Drop 5 | . 3 2 . Fire 64 | . 55 8 1 Melee . | . . . . Ram . | . . . . Kick . | . . . . Crush . | . . . . Escape Stasis . | . . . . Rewire . | . . . . Trap . | . . . . Miscellaneous 22 | . 14 8 . Route ------- -11/Scrapyard -10/Materials (discovered 3 exits: [*Mat x2] / *Min) -10/Mines (discovered 2 exits: [*Mat] / [*Exi]) -10/Exiles History --------- Turn | Location | Event 7 | -11/Scrapyard | Upgraded with Propulsion slot (x1) 7 | -11/Scrapyard | Upgraded with Utility slot (x1) 7 | -11/Scrapyard | Upgraded with Weapon slot (x1) 7 | -11/Scrapyard | Discovered new exit (range 16) 72 | -11/Scrapyard | Entered Materials 224 | -10/Materials | Core integrity fell below 50% 296 | -10/Materials | Discovered new exit (range 15) 305 | -10/Materials | Build established: Mutant 530 | -10/Materials | Discovered new exit (range 16) 673 | -10/Materials | Discovered new exit (range 6) 734 | -10/Materials | Entered Mines 736 | -10/Mines | Reached level 2 834 | -10/Mines | Learned 2 Materials zone layouts 842 | -10/Mines | Discovered new exit (range 9) 848 | -10/Mines | Learned location of Storage (-7) 923 | -10/Mines | Assembled infested the area 928 | -10/Mines | Assisted by a Guerilla fighting off Assembled 1046 | -10/Mines | Learned Materials stockpile data 1085 | -10/Mines | Found the Drone Emporium 1091 | -10/Mines | Found Prototype Device 1091 | -10/Mines | Identified Bomb Drone Bay 1137 | -10/Mines | Deemed a non-threat by the Exiles lab entrance 1138 | -10/Mines | Discovered new exit (range 5) 1143 | -10/Mines | Entered Exiles 1172 | -10/Exiles | Met 8R-AWN 1206 | -10/Exiles | Attacked by the Exiles 1208 | -10/Exiles | Core integrity fell below 20% 1208 | -10/Exiles | Core destroyed Last Messages --------------- 01206_ Bomb Drone detonates. 01206_ Bomb Drone destroyed. 01206_ HV Slug penetrates Bomb Drone. 01206_ HV Slug penetrates Wall. 01206_ HV Slug penetrates Bomb Drone. 01206_ Bomb Drone suffers critical hit (Destroy). 01206_ Bomb Drone destroyed. 01206_ HV Slug penetrates Bomb Drone. 01207_ Bomb Drone detonates. 01207_ Bomb Drone destroyed. 01207_ Bomb Drone detonates. 01207_ Bomb Drone destroyed. 01207_ Bomb Drone detonates. 01207_ Bomb Drone destroyed. 01207_ Bomb Drone retrieved by Bomb Drone Bay. 01207_ Bomb Drone detonates. 01207_ Bomb Drone destroyed. 01208_ The unstable cave ceiling collapses. 01208_ Bomb Drone detonates. 01208_ Bomb Drone destroyed. Map ----- +----------------------------------------------------+ | ?????????????????????????????????????????????????? | | ?????????????????????????????????????????????????? | | ?????????????????????????????????????????????????? | | ?????????????????????????????????????????????????? | | ?????????????????????????????????????????????????? | | ?????????????????????????????????????????????????? | | ?????????????????????????????????????????????????? | | ?????????????????????????????????????????????????? | | ?????????????????????????????????????????????????? | | ?????????????????????????????????????????????????? | | ?????????????????????????????????????????????????? | | ?????????????????????????????????????????????????? | | ?????????????????????????????????????????????????? | | ?????????????????????????????????????????????????? | | ??????????????????????????##?????????????????????? | | ??????????????????????#### #####?????????????????? | | ????????????????????### # ##????????????# ? | | ???????????????????## #??????????## # | | ???????????????????# ##??????????# | | ???????????????????# #??????????# | | ???????????????????# ##????????## | | ???????????????????# g #???????## #? | | ???????????????????# n #???????# #? | | ???????????????????# n #?????### #?? | | ???????????????????# ####### #?? | | ??????????????????## n@n """"## #??? | | ???????????? ### n * ##?? | | ?????????? * #?? | | ???????? # ##? | | ????????? ""###"""""#### ## | | ????????? #"""#??#######??#### * | | ?????????? a #####???????????????##### | | ?????????? a #????????????????????????### | | ?????????? aa #???????????????????????????### | | ??????????? "???????????????????????????????### | | ??????????????????????????????????????????????#" | | ??????????????????????????????????????????????#### | | ?????????????????????????????????????????????????# | | ?????????????????????????????????????????????????# | | ?????????????????????????????????????????????????? | | ?????????????????????????????????????????????????? | | ?????????????????????????????????????????????????? | | ?????????????????????????????????????????????????? | | ?????????????????????????????????????????????????? | | ?????????????????????????????????????????????????? | | ?????????????????????????????????????????????????? | | ?????????????????????????????????????????????????? | | ?????????????????????????????????????????????????? | | ?????????????????????????????????????????????????? | | ?????????????????????????????????????????????????? | +----------------------------------------------------+ Best States ------------- Heat Dissipation 25 Energy Generation 10 Energy Capacity 250 Matter Stores 300 Matter Capacity 300 Sight Range 16 Robot Scan Range 14 Terrain Scan Density 10 Evasion (%) 55 Targeting Accuracy 5 Recoil Reduction 1 Item Schematics ----------------- None Robot Schematics ------------------ None Fabricated ------------ Nothing Alien Tech Used ----------------- None Achievements -------------- None Challenges ------------ None RPGLIKE | -11 -10 -10 -10 --------- Run | Scr Mat Min Exi Levels Raised 1 | . . 1 . XP Earned 5215 | 3000 1365 650 200 XP Spent 3000 | 3000 . . . Upgrades 6 | 6 . . . Propulsion Slot 1 | 1 . . . Utility Slot 1 | 1 . . . Weapon Slot 1 | 1 . . . Inventory Capacity 3 | 3 . . . Protomatter Created 125 | . 107 18 . Integrity Restored 477 | . 321 156 . Core 477 | . 321 156 . Protomatter Decayed 49 | . . 49 . Game ------ Seed SystemNodeSword Manual? 0 Play Time 00:07:17 Cumulative 115.6 hours Start 2022.05.03 @ 16:17:19 End 2022.05.03 @ 21:07:38 Sessions 4 Manual Loads 0 Difficulty Rogue Special Mode Winter2019/RPGLIKE Game No. 75 Rogue 36 Adventurer 5 Explorer 34 Win Type - Total 19 Types 10/0/4/4/1/0/0/0/0 Lore% 74 Gallery% 69 Achievement% 76 Wizard Run 0 Options --------- ASCII 0 Keyboard 0 Movement Mouse Keybinds 0 Fullscreen 1 Font 18/Terminus Map View 76x50 Tactical HUD 1 Map Filters NONE Filters NONE Steam 1 RUN: 37f9cf22-454a-41ce-9a92-944c929d2e61